fUSD/lending_fUSD_20260319
["ID","MTS","AMOUNT","RATE_DAILY","PERIOD"]
[408610030,1773940258672,-271.87,0.00019346,2]
[408610031,1773940258681,-4781.0,0.00019365,2]
[408610032,1773940258690,-350.0,0.00019547,3]
[408610033,1773940258699,-1400.0,0.0001957,7]
[408610034,1773940258708,-3000.0,0.0001957,7]
[408610035,1773940258717,-350.0,0.00019703,2]
[408610036,1773940258727,-150.0,0.00019726,2]
[408610037,1773940258737,-164.01537617,0.00019741,14]
[408610038,1773940258747,-111979.75687929,0.000198,2]
[408610039,1773940258756,-2400.0,0.00019844,7]
[408610040,1773940258766,-15570.84,0.00019873,2]
[408610041,1773940258775,-350.0,0.00019892,3]
[408610042,1773940258786,-20008.9881816,0.000199,2]
[408610043,1773940258795,-350.0,0.00019997,2]
[408610044,1773940258806,-160.0,0.0002,2]
[408610045,1773940258815,-4730.23176401,0.0002,2]
[408610046,1773940258825,-1212.8096,0.0002,2]
[408610047,1773940258835,-949.5213,0.0002,2]
[408610048,1773940258845,-599.999998,0.0002,2]
[408610049,1773940258855,-2000.0,0.0002,2]
[408610050,1773940258864,-10000.0,0.0002,2]
[408610051,1773940258874,-2000.0,0.0002,2]
[408610052,1773940258883,-10000.0,0.0002,2]
[408610053,1773940258893,-280.27182832,0.0002,2]
[408610054,1773940258903,-200.679623,0.0002,2]
[408610055,1773940258912,-350.0,0.00020006,4]
[408610056,1773940258921,-3455.0,0.00020037,2]
[408610057,1773940258930,-341.279165,0.00020139,7]
[408610058,1773940258940,-233.903763,0.00020139,7]
[408610059,1773940258949,-1477.73,0.00020187,2]
[408610060,1773940258958,-1500.0,0.00020212,2]
[408610061,1773940258967,-1215.0,0.00020249,2]
[408610062,1773940258976,-924.0,0.00020249,2]
[408610063,1773940258986,-6006.0,0.00020249,2]
[408610064,1773940258994,-2465.0,0.00020249,2]
[408610065,1773940259003,-151.43960925,0.00020274,2]
[408610066,1773940259012,-3023.56,0.00020279,2]
[408610067,1773940259021,-159.62,0.00020548,2]
[408610068,1773940259030,-3512.0,0.00020559,2]
[408610069,1773940259041,-1344.0,0.00020559,2]
[408610070,1773940259050,-620.0,0.00020559,2]
[408610071,1773940259059,-1259.0,0.00020559,2]
[408610072,1773940259067,-154.42032795,0.00020595,2]
[408610073,1773940259076,-150.0,0.00020599,2]
[408610074,1773940259085,-150.0,0.00020599,2]
[408610075,1773940259094,-150.0,0.00020599,2]
[408610076,1773940259104,-234.41781337,0.00020599,2]
[408610077,1773940259114,-248163.29135904,0.000206,2]
[408610078,1773940259584,-824.0,8.219e-05,2]
[408610079,1773940259774,-876.0,8.219e-05,2]
[408610080,1773940259784,-1700.0,8.219e-05,2]
[408610081,1773940259794,-1700.0,8.219e-05,2]
[408610082,1773940259803,-1700.0,8.219e-05,2]
[408610083,1773940259812,-1700.0,8.219e-05,2]
[408610084,1773940259822,-1700.0,8.219e-05,2]
[408610085,1773940259831,-1700.0,8.219e-05,2]
[408610086,1773940259841,-1700.0,8.219e-05,2]
[408610087,1773940259850,-1700.0,8.219e-05,2]
[408610088,1773940259860,-1700.0,8.219e-05,2]
[408610089,1773940259869,-1700.0,8.219e-05,2]
[408610090,1773940259879,-1700.0,8.219e-05,2]
[408610091,1773940259888,-1700.0,8.219e-05,2]
[408610092,1773940259897,-1700.0,8.219e-05,2]
[408610093,1773940259907,-1700.0,8.219e-05,2]
[408610094,1773940259916,-278.01150856,0.00011379,2]
[408610095,1773940259926,-190.19252249,0.00011379,2]
[408610096,1773940259935,-200.0,0.000122,2]
[408610097,1773940259946,-626.2358179,0.00012777,2]
[408610098,1773940259955,-813.685365,0.0002,2]
[408610099,1773940259965,-414.0,0.00020249,2]
[408610100,1773940259975,-8837.02231457,0.000206,2]
[408610101,1773940260108,-793.1136,0.000206,2]
[408610102,1773940260124,-335.819307,0.000206,2]
[408610103,1773940260135,-445.5,0.000206,2]
[408610104,1773940260149,-881.45672485,0.000206,2]
[408610105,1773940260177,-1700.0,8.219e-05,2]
[408610106,1773940260186,-2240.32309935,0.000206,2]
[408610107,1773940260198,-1037.32092717,0.000206,2]
[408610108,1773940260209,-2112.0,0.000206,2]
[408610109,1773940260418,800.0,0.00033,120]
[408610110,1773940260458,800.0,0.00033,120]
[408610111,1773940260488,800.0,0.00033,120]
[408610112,1773940260514,800.0,0.00033,120]
[408610113,1773940260543,800.0,0.00033,120]
[408610114,1773940260572,800.0,0.00033,120]
[408610115,1773940260601,800.0,0.00033,120]
[408610116,1773940260630,800.0,0.00033,120]
[408610117,1773940260665,800.0,0.00033,120]
[408610118,1773940260703,800.0,0.00033,120]
[408610119,1773940260757,800.0,0.00033,120]
[408610120,1773940260786,800.0,0.00033,120]
[408610121,1773940260819,800.0,0.00033,120]
[408610122,1773940260846,800.0,0.00033,120]
[408610123,1773940260876,800.0,0.00033,120]
[408610124,1773940260904,800.0,0.00033,120]
[408610125,1773940260949,800.0,0.00033,120]
[408610126,1773940260981,800.0,0.00033,120]
[408610127,1773940261208,800.0,0.00033,120]
[408610128,1773940261234,800.0,0.00033,120]
[408610129,1773940261258,800.0,0.00033,120]
[408610130,1773940261311,800.0,0.00033,120]
[408610131,1773940261341,800.0,0.00033,120]
[408610132,1773940261369,800.0,0.00033,120]
[408610133,1773940261394,800.0,0.00033,120]
[408610134,1773940261430,800.0,0.00033,120]
[408610135,1773940261474,800.0,0.00033,120]
[408610136,1773940261501,800.0,0.00033,120]
[408610137,1773940261677,800.0,0.00033,120]
[408610138,1773940261947,800.0,0.00033,120]
[408610139,1773940262224,800.0,0.00033,120]
[408610140,1773940262509,800.0,0.00033,120]
[408610141,1773940262777,800.0,0.00033,120]
[408610142,1773940263060,800.0,0.00033,120]
[408610143,1773940263343,800.0,0.00033,120]
[408610144,1773940263622,800.0,0.00033,120]
[408610145,1773940263903,800.0,0.00033,120]
[408610146,1773940264564,800.0,0.00033,120]
[408610147,1773940264840,800.0,0.00033,120]
[408610148,1773940265107,800.0,0.00033,120]
[408610149,1773940265293,500.0,0.00033,120]
[408610150,1773940265380,800.0,0.00033,120]
[408610151,1773940265677,800.0,0.00033,120]
[408610152,1773940265948,800.0,0.00033,120]
[408610153,1773940266224,800.0,0.00033,120]
[408610154,1773940266492,800.0,0.00033,120]
[408610155,1773940266755,800.0,0.00033,120]
[408610156,1773940267029,800.0,0.00033,120]
[408610157,1773940267309,800.0,0.00033,120]
[408610158,1773940267587,800.0,0.00033,120]
[408610159,1773940267850,800.0,0.00033,120]
[408610160,1773940268111,800.0,0.00033,120]
[408610161,1773940268376,800.0,0.00033,120]
[408610162,1773940268671,800.0,0.00033,120]
[408610163,1773940268975,800.0,0.00033,120]
[408610164,1773940269241,800.0,0.00033,120]
[408610165,1773940269673,800.0,0.00033,120]
[408610166,1773940269768,800.0,0.00033,120]
[408610167,1773940270035,800.0,0.00033,120]
[408610168,1773940270310,800.0,0.00033,120]
[408610169,1773940270578,800.0,0.00033,120]
[408610170,1773940270844,800.0,0.00033,120]
[408610171,1773940271115,800.0,0.00033,120]
[408610172,1773940271385,800.0,0.00033,120]
[408610173,1773940271669,800.0,0.00033,120]
[408610174,1773940271929,800.0,0.00033,120]
[408610175,1773940272195,800.0,0.00033,120]
[408610176,1773940272474,800.0,0.00033,120]
[408610177,1773940272728,800.0,0.00033,120]
[408610178,1773940272993,800.0,0.00033,120]
[408610179,1773940273253,800.0,0.00033,120]
[408610180,1773940273512,800.0,0.00033,120]
[408610181,1773940273807,800.0,0.00033,120]
[408610182,1773940274073,800.0,0.00033,120]
[408610183,1773940274325,800.0,0.00033,120]
[408610184,1773940274784,800.0,0.00033,120]
[408610185,1773940276078,70.16346294,0.00033,120]
[408610186,1773940296864,10000.01,6.67e-05,2]
[408610187,1773940296887,10000.01,6.67e-05,2]
[408610188,1773940296910,10000.01,6.67e-05,2]
[408610189,1773940296933,10000.01,6.67e-05,2]
[408610190,1773940296956,10000.01,6.67e-05,2]
[408610191,1773940296978,10000.01,6.67e-05,2]
[408610192,1773940297001,10000.01,6.67e-05,2]
[408610193,1773940297024,10000.01,6.67e-05,2]
[408610194,1773940297046,10000.01,6.67e-05,2]
[408610195,1773940303610,-9076.51791766,6.67e-05,2]
[408610196,1773940305289,-10000.01,6.67e-05,2]
[408610197,1773940305302,-10000.01,6.67e-05,2]
[408610198,1773940305325,-10000.01,6.67e-05,2]
[408610199,1773940305416,-10000.01,6.67e-05,2]
[408610200,1773940305523,-10000.01,6.67e-05,2]
[408610201,1773940305734,-10000.01,6.67e-05,2]
[408610202,1773940305907,-10000.01,6.67e-05,2]
[408610203,1773940306030,-10000.01,6.67e-05,2]
[408610222,1773941380402,-1200.0,6.536e-05,2]
[408610223,1773941380431,-300.0,6.536e-05,2]
[408610224,1773941380458,-300.0,6.536e-05,2]
[408610225,1773941380485,-300.0,6.536e-05,2]
[408610226,1773941395468,-250.0,6.536e-05,2]
[408610228,1773941401140,1200.0,6.536e-05,2]
[408610229,1773941410590,-4534.474,6.537e-05,2]
[408610230,1773941410691,-931.062,6.537e-05,2]
[408610231,1773941410724,-240.445,6.537e-05,2]
[408610232,1773941410758,-3568.18761532,6.537e-05,2]
[408610233,1773941410834,-251.68276936,6.537e-05,2]
[408610234,1773941410868,-268.938,6.537e-05,2]
[408610235,1773941410896,-207.0,6.537e-05,2]
[408610237,1773941425863,-250.0,6.549e-05,2]
[408610245,1773941431450,-150.0,6.558e-05,2]
[408610246,1773941431460,-550253.02689288,6.559e-05,2]
[408610247,1773941431558,-970.44892758,6.559e-05,2]
[408610257,1773941437479,-754.0574865,6.559e-05,2]
[408610258,1773941437534,-925.48761476,6.559e-05,2]
[408610259,1773941437590,-610.84628474,6.559e-05,2]
[408610260,1773941437601,-3487.1,6.559e-05,2]
[408610261,1773941437646,-51807.58838252,6.559e-05,2]
[408610262,1773941437702,-301.76454383,6.559e-05,2]
[408610282,1773941438860,-4188.15646719,6.559e-05,2]
[408610288,1773941439655,-368.4552,6.568e-05,2]
[408610289,1773941439664,-91.5448,6.659e-05,2]
[408610290,1773941439817,-1162.5,6.659e-05,2]
[408610291,1773941439928,-2087.35561169,6.659e-05,2]
[408610300,1773941442469,-46638.54399257,6.659e-05,2]
[408610301,1773941442522,-47974.36927802,6.659e-05,2]
[408610302,1773941442532,-291.52,6.669e-05,2]
[408610303,1773941442541,-500.0,6.669e-05,2]
[408610304,1773941442551,-618.45457764,6.669e-05,2]
[408610305,1773941442560,-500.0,6.669e-05,2]
[408610306,1773941442570,-500.0,6.669e-05,2]
[408610307,1773941442580,-576.53173476,6.669e-05,2]
[408610308,1773941442589,-576.53173476,6.669e-05,2]
[408610309,1773941442598,-576.53173476,6.669e-05,2]
[408610310,1773941442608,-576.53173476,6.669e-05,2]
[408610311,1773941442618,-576.53173476,6.669e-05,2]
[408610312,1773941442628,-576.53173476,6.669e-05,2]
[408610313,1773941442638,-576.53173476,6.669e-05,2]
[408610314,1773941442647,-576.53173476,6.669e-05,2]
[408610315,1773941442657,-576.53173476,6.669e-05,2]
[408610316,1773941442667,-576.53173476,6.669e-05,2]
[408610317,1773941442677,-576.53173476,6.669e-05,2]
[408610318,1773941442687,-576.53173476,6.669e-05,2]
[408610319,1773941442697,-576.53173476,6.669e-05,2]
[408610320,1773941442711,-576.53173476,6.669e-05,2]
[408610321,1773941442720,-576.53173476,6.669e-05,2]
[408610322,1773941442729,-576.53173476,6.669e-05,2]
[408610323,1773941442739,-576.53173476,6.669e-05,2]
[408610324,1773941442748,-576.53173476,6.669e-05,2]
[408610325,1773941442757,-576.53173476,6.669e-05,2]
[408610326,1773941442767,-576.53173476,6.669e-05,2]
[408610327,1773941442778,-576.53173476,6.669e-05,2]
[408610328,1773941442787,-576.53173476,6.669e-05,2]
[408610329,1773941442797,-576.53173476,6.669e-05,2]
[408610330,1773941442806,-576.53173476,6.669e-05,2]
[408610331,1773941442817,-576.53173476,6.669e-05,2]
[408610332,1773941442826,-576.53173476,6.669e-05,2]
[408610333,1773941442835,-576.53173476,6.669e-05,2]
[408610335,1773941442844,-576.53173476,6.669e-05,2]
[408610337,1773941442854,-576.53173476,6.669e-05,2]
[408610338,1773941442863,-576.53173476,6.669e-05,2]
[408610339,1773941442872,-576.53173476,6.669e-05,2]
[408610340,1773941442882,-576.53173476,6.669e-05,2]
[408610341,1773941442891,-576.53173476,6.669e-05,2]
[408610342,1773941442901,-576.53173476,6.669e-05,2]
[408610343,1773941442910,-576.53173476,6.669e-05,2]
[408610344,1773941442920,-576.53173476,6.669e-05,2]
[408610345,1773941442930,-576.53173476,6.669e-05,2]
[408610346,1773941442940,-576.53173476,6.669e-05,2]
[408610347,1773941442950,-576.53173476,6.669e-05,2]
[408610348,1773941442959,-576.53173476,6.669e-05,2]
[408610349,1773941442969,-576.53173476,6.669e-05,2]
[408610350,1773941442979,-576.53173476,6.669e-05,2]
[408610351,1773941442989,-576.53173476,6.669e-05,2]
[408610352,1773941442999,-576.53173476,6.669e-05,2]
[408610353,1773941443009,-576.53173476,6.669e-05,2]
[408610355,1773941443019,-576.53173476,6.669e-05,2]
[408610357,1773941443030,-576.53173476,6.669e-05,2]
[408610358,1773941443039,-576.53173476,6.669e-05,2]
[408610359,1773941443049,-576.53173476,6.669e-05,2]
[408610360,1773941443059,-576.53173476,6.669e-05,2]
[408610361,1773941443069,-576.53173476,6.669e-05,2]
[408610362,1773941443078,-576.53173476,6.669e-05,2]
[408610363,1773941443087,-576.53173476,6.669e-05,2]
[408610364,1773941443096,-576.53173476,6.669e-05,2]
[408610365,1773941443106,-576.53173476,6.669e-05,2]
[408610366,1773941443116,-576.53173476,6.669e-05,2]
[408610367,1773941443125,-576.53173476,6.669e-05,2]
[408610368,1773941443135,-576.53173476,6.669e-05,2]
[408610369,1773941443144,-576.53173476,6.669e-05,2]
[408610370,1773941443153,-576.53173476,6.669e-05,2]
[408610371,1773941443163,-576.53173476,6.669e-05,2]
[408610372,1773941443174,-576.53173476,6.669e-05,2]
[408610373,1773941443184,-576.53173476,6.669e-05,2]
[408610374,1773941443194,-576.53173476,6.669e-05,2]
[408610375,1773941443205,-576.53173476,6.669e-05,2]
[408610376,1773941443215,-214.51439652,6.669e-05,2]
[408610377,1773941443225,-307.77077871,6.669e-05,2]
[408610378,1773941443234,-560.38884617,6.669e-05,2]
[408610379,1773941443244,-560.38884617,6.669e-05,2]
[408610380,1773941443253,-560.38884617,6.669e-05,2]
[408610381,1773941443262,-560.38884617,6.669e-05,2]
[408610382,1773941443271,-560.38884617,6.669e-05,2]
[408610383,1773941443280,-560.38884617,6.669e-05,2]
[408610384,1773941443289,-560.38884617,6.669e-05,2]
[408610385,1773941443298,-560.38884617,6.669e-05,2]
[408610386,1773941443307,-560.38884617,6.669e-05,2]
[408610387,1773941443317,-560.38884617,6.669e-05,2]
[408610388,1773941443326,-560.38884617,6.669e-05,2]
[408610389,1773941443336,-560.38884617,6.669e-05,2]
[408610390,1773941443345,-560.38884617,6.669e-05,2]
[408610391,1773941443354,-560.38884617,6.669e-05,2]
[408610392,1773941443364,-560.38884617,6.669e-05,2]
[408610393,1773941443373,-560.38884617,6.669e-05,2]
[408610394,1773941443381,-560.38884617,6.669e-05,2]
[408610395,1773941443390,-560.38884617,6.669e-05,2]
[408610396,1773941443399,-560.38884617,6.669e-05,2]
[408610397,1773941443408,-560.38884617,6.669e-05,2]
[408610398,1773941443417,-560.38884617,6.669e-05,2]
[408610399,1773941443427,-560.38884617,6.669e-05,2]
[408610400,1773941443436,-560.38884617,6.669e-05,2]
[408610401,1773941443445,-560.38884617,6.669e-05,2]
[408610403,1773941443454,-560.38884617,6.669e-05,2]
[408610404,1773941443463,-500.0,6.669e-05,2]
[408610405,1773941443472,-500.0,6.669e-05,2]
[408610406,1773941443481,-444.78820382,6.669e-05,2]
[408610407,1773941443491,-299.99,6.67e-05,2]
[408610408,1773941443499,-150.99,6.67e-05,2]
[408610409,1773941443509,-9999.99,6.67e-05,2]
[408610410,1773941443519,-370.69,6.67e-05,2]
[408610411,1773941443528,-999.99,6.67e-05,2]
[408610412,1773941443537,-9800.23,6.67e-05,2]
[408610413,1773941443546,-57559.52,6.67e-05,2]
[408610414,1773941443555,-291.52,6.943e-05,2]
[408610415,1773941443565,-250.0,7.19e-05,2]
[408610416,1773941443575,-250.0,7.191e-05,2]
[408610417,1773941443584,-150.0,7.214e-05,2]
[408610418,1773941443593,-291.53,7.217e-05,2]
[408610419,1773941443602,-500.0,7.602e-05,2]
[408610420,1773941443611,-270.0,7.887e-05,2]
[408610421,1773941443620,-500.0,8.219e-05,2]
[408610422,1773941443629,-500.0,8.219e-05,2]
[408610423,1773941443638,-284.87599558,8.219e-05,2]
[408610424,1773941443647,-412.71750154,8.219e-05,2]
[408610425,1773941443656,-250.0,8.636e-05,2]
[408610426,1773941443665,-217.0,8.726e-05,2]
[408610427,1773941443674,-270.0,8.887e-05,2]
[408610428,1773941443683,-3346.15,8.949e-05,2]
[408610429,1773941443692,-846.89,8.973e-05,2]
[408610430,1773941443701,-193.09,9.003e-05,2]
[408610431,1773941443713,-170.68,9.106e-05,2]
[408610432,1773941443722,-920.0,9.16e-05,2]
[408610433,1773941443731,-200.0,9.3e-05,2]
[408610434,1773941443740,-251.0,9.335e-05,2]
[408610435,1773941443750,-33535.04,9.412e-05,2]
[408610436,1773941443759,-10088.75,9.567e-05,2]
[408610437,1773941443770,-270.0,9.887e-05,2]
[408610438,1773941443780,-200.0,9.912e-05,2]
[408610439,1773941443790,-151.0,0.0001,2]
[408610440,1773941443799,-151.0,0.0001,2]
[408610441,1773941443809,-151.0,0.0001,2]
[408610442,1773941443818,-151.0,0.0001,2]
[408610443,1773941443834,-151.0,0.0001,2]
[408610444,1773941443843,-151.0,0.0001,2]
[408610445,1773941443852,-151.0,0.0001,2]
[408610446,1773941443861,-151.0,0.0001,2]
[408610447,1773941443870,-151.0,0.0001,2]
[408610448,1773941443880,-151.0,0.0001,2]
[408610449,1773941443888,-151.0,0.0001,2]
[408610450,1773941443897,-151.0,0.0001,2]
[408610451,1773941443906,-151.0,0.0001,2]
[408610452,1773941443915,-151.0,0.0001,2]
[408610453,1773941443924,-151.0,0.0001,2]
[408610454,1773941443933,-151.0,0.0001,2]
[408610455,1773941443942,-151.0,0.0001,2]
[408610456,1773941443951,-151.0,0.0001,2]
[408610457,1773941443960,-151.0,0.0001,2]
[408610458,1773941443970,-151.0,0.0001,2]
[408610459,1773941443978,-151.0,0.0001,2]
[408610460,1773941443987,-151.0,0.0001,2]
[408610461,1773941443996,-151.0,0.0001,2]
[408610462,1773941444006,-151.0,0.0001,2]
[408610463,1773941444015,-151.0,0.0001,2]
[408610464,1773941444024,-151.0,0.0001,2]
[408610465,1773941444033,-151.0,0.0001,2]
[408610466,1773941444042,-151.0,0.0001,2]
[408610467,1773941444052,-151.0,0.0001,2]
[408610468,1773941444062,-151.0,0.0001,2]
[408610469,1773941444072,-151.0,0.0001,2]
[408610470,1773941444081,-151.0,0.0001,2]
[408610471,1773941444091,-151.0,0.0001,2]
[408610472,1773941444100,-151.0,0.0001,2]
[408610473,1773941444110,-278.26232349,0.00010328,2]
[408610474,1773941444119,-979.16666667,0.00010607,2]
[408610475,1773941444128,-160.0,0.00010607,2]
[408610476,1773941444137,-270.71,0.00010682,2]
[408610477,1773941444146,-270.0,0.00010887,2]
[408610478,1773941444155,-3761.09878677,0.000109,2]
[408610479,1773941444164,-3761.09878671,0.000109,2]
[408610480,1773941444174,-500.0,0.00010938,2]
[408610481,1773941444183,-1450.9,0.00010976,2]
[408610482,1773941444193,-14425.49705781,0.00011099,2]
[408610483,1773941444202,-14425.49705775,0.00011099,2]
[408610484,1773941444211,-14425.49705775,0.00011099,2]
[408610485,1773941444220,-14425.49705775,0.00011099,2]
[408610486,1773941444229,-257.93,0.00011233,2]
[408610487,1773941444238,-166.66,0.00011347,2]
[408610488,1773941444247,-14425.49705775,0.00011606,2]
[408610489,1773941444257,-166.66,0.00011721,2]
[408610490,1773941444266,-3761.09878671,0.00011779,2]
[408610491,1773941444277,-270.0,0.00011887,2]
[408610492,1773941444287,-166.66,0.00012096,2]
[408610493,1773941444297,-6006.0,0.00012305,2]
[408610494,1773941444306,-620.0,0.00012305,2]
[408610495,1773941444316,-166.66,0.0001247,2]
[408610496,1773941444325,-1214.0,0.00012652,2]
[408610497,1773941444334,-909.348,0.00012652,2]
[408610498,1773941444345,-500.0,0.00012804,2]
[408610499,1773941444354,-500.0,0.00012804,2]
[408610500,1773941444363,-500.0,0.00012804,2]
[408610501,1773941444374,-500.0,0.00012804,2]
[408610502,1773941444384,-500.0,0.00012804,2]
[408610503,1773941444394,-500.0,0.00012804,2]
[408610504,1773941444403,-500.0,0.00012804,2]
[408610505,1773941444412,-500.0,0.00012804,2]
[408610506,1773941444422,-500.0,0.00012804,2]
[408610507,1773941444432,-500.0,0.00012804,2]
[408610508,1773941444441,-500.0,0.00012804,2]
[408610509,1773941444451,-500.0,0.00012804,2]
[408610510,1773941444461,-166.66,0.00012845,2]
[408610511,1773941444471,-14425.49705775,0.00012864,2]
[408610513,1773941444480,-288.0,0.00012887,2]
[408610514,1773941444489,-28300.99,0.0001289,2]
[408610515,1773941444499,-166.66,0.00013219,2]
[408610516,1773941444509,-500.0,0.00013589,2]
[408610517,1773941444519,-380.0,0.00013616,2]
[408610518,1773941444528,-170.68,0.0001366,2]
[408610519,1773941444536,-200.0,0.00013699,2]
[408610520,1773941444546,-1182.18,0.00013699,2]
[408610521,1773941444556,-162.47219205,0.00013699,2]
[408610522,1773941444566,-55741.98394096,0.0001399,2]
[408610523,1773941444575,-1029.83,0.00014,2]
[408610524,1773941444584,-1500.0,0.00014,2]
[408610525,1773941444594,-588.43,0.000141,2]
[408610526,1773941444603,-14425.49705775,0.00014123,2]
[408610527,1773941444612,-3761.09878671,0.00014383,2]
[408610528,1773941444621,-10385.50220008,0.0001439,2]
[408610529,1773941444631,-73956.70218337,0.000149,2]
[408610530,1773941444639,-855.27,0.000149,2]
[408610531,1773941444649,-142888.46329662,0.000149,2]
[408610536,1773941445618,-500.0,6.669e-05,2]
[408610537,1773941445628,-500.0,6.669e-05,2]
[408610538,1773941445637,-307.84975744,6.669e-05,2]
[408610539,1773941445647,-500.0,6.669e-05,2]
[408610540,1773941445656,-3609.29774254,0.000149,2]
[408610541,1773941445677,-375.057,0.000149,2]
[408610545,1773941477262,365.039,0.0003,120]
[408610546,1773941487164,800.0,0.0003,120]
[408610547,1773941487541,800.0,0.0003,120]
[408610548,1773941487811,800.0,0.0003,120]
[408610549,1773941488085,800.0,0.0003,120]
[408610550,1773941488346,800.0,0.0003,120]
[408610551,1773941489603,800.0,0.0003,120]
[408610552,1773941489876,800.0,0.0003,120]
[408610553,1773941490142,800.0,0.0003,120]
[408610554,1773941490456,800.0,0.0003,120]
[408610555,1773941490726,800.0,0.0003,120]
[408610556,1773941491010,800.0,0.0003,120]
[408610557,1773941491278,800.0,0.0003,120]
[408610558,1773941491540,800.0,0.0003,120]
[408610559,1773941491810,800.0,0.0003,120]
[408610560,1773941492113,519.301,0.0003,120]
[408610561,1773941552319,10000.0,6.559e-05,2]
[408610562,1773941552340,10000.0,6.559e-05,2]
[408610563,1773941552361,10000.0,6.559e-05,2]
[408610564,1773941552383,10000.0,6.559e-05,2]
[408610565,1773941552404,10000.0,6.559e-05,2]
[408610566,1773941552425,10000.0,6.559e-05,2]
[408610567,1773941552446,10000.0,6.559e-05,2]
[408610568,1773941552467,10000.0,6.559e-05,2]
[408610569,1773941552489,10000.0,6.559e-05,2]
[408610570,1773941552510,10000.0,6.559e-05,2]
[408610571,1773941552531,10000.0,6.559e-05,2]
[408610572,1773941552551,10000.0,6.559e-05,2]
[408610573,1773941552571,10000.0,6.559e-05,2]
[408610574,1773941552591,10000.0,6.559e-05,2]
[408610575,1773941552611,10000.0,6.559e-05,2]
[408610576,1773941552632,10000.0,6.559e-05,2]
[408610577,1773941552653,10000.0,6.559e-05,2]
[408610578,1773941552678,10000.0,6.559e-05,2]
[408610579,1773941552699,10000.0,6.559e-05,2]
[408610580,1773941552723,10000.0,6.559e-05,2]
[408610581,1773941552744,10000.0,6.559e-05,2]
[408610582,1773941552765,10000.0,6.559e-05,2]
[408610583,1773941552786,10000.0,6.559e-05,2]
[408610584,1773941552807,10000.0,6.559e-05,2]
[408610585,1773941552828,10000.0,6.559e-05,2]
[408610586,1773941552850,10000.0,6.559e-05,2]
[408610587,1773941552871,10000.0,6.559e-05,2]
[408610588,1773941552893,10000.0,6.559e-05,2]
[408610589,1773941552916,10000.0,6.559e-05,2]
[408610590,1773941552938,10000.0,6.559e-05,2]
[408610591,1773941552959,10000.0,6.559e-05,2]
[408610592,1773941552980,10000.0,6.559e-05,2]
[408610593,1773941553003,10000.0,6.559e-05,2]
[408610594,1773941553025,10000.0,6.559e-05,2]
[408610595,1773941553046,10000.0,6.559e-05,2]
[408610596,1773941553067,10000.0,6.559e-05,2]
[408610597,1773941553090,10000.0,6.559e-05,2]
[408610598,1773941553114,10000.01,6.559e-05,2]
[408610599,1773941553136,10000.01,6.559e-05,2]
[408610600,1773941553160,10000.01,6.559e-05,2]
[408610601,1773941553184,10000.01,6.559e-05,2]
[408610602,1773941553206,10000.01,6.559e-05,2]
[408610603,1773941553228,10000.01,6.559e-05,2]
[408610604,1773941553249,10000.01,6.559e-05,2]
[408610605,1773941553271,10000.01,6.559e-05,2]
[408610606,1773941553292,10000.01,6.559e-05,2]
[408610607,1773941553316,10000.01,6.559e-05,2]
[408610608,1773941560711,-10000.01,6.559e-05,2]
[408610609,1773941560808,-10000.01,6.559e-05,2]
[408610610,1773941560909,-10000.01,6.559e-05,2]